fUSD/lending_fUSD_20240602
["ID","MTS","AMOUNT","RATE_DAILY","PERIOD"]
[328411253,1717362643894,-150.0,0.00030075,2]
[328411254,1717362643903,-150.0,0.00030075,2]
[328411256,1717362643912,-150.0,0.00030075,2]
[328411258,1717362643922,-150.0,0.00030075,2]
[328411260,1717362643932,-302.24,0.00030075,2]
[328411262,1717362643941,-500.0,0.00030136,5]
[328411264,1717362643950,-7387.570695,0.000302,2]
[328411266,1717362643960,-150.0,0.00030231,2]
[328411268,1717362643970,-382.52220786,0.00030231,2]
[328411269,1717362643979,-150.0,0.00030232,2]
[328411270,1717362643988,-154.01365598,0.00030241,2]
[328411271,1717362643997,-150.0,0.00030249,2]
[328411272,1717362644007,-2783.9497632,0.00030268,5]
[328411289,1717362644185,-365.0,0.00030268,5]
[328411292,1717362644220,-421.9,0.00029981,2]
[328411293,1717362644230,-110.46726295,0.00030268,5]
[328411294,1717362644241,-1213.39210882,0.00030268,5]
[328411295,1717362644253,-2732.65086503,0.00030268,5]
[328411296,1717362644262,-150.0,0.00030281,2]
[328411297,1717362644271,-150.0,0.00030284,2]
[328411298,1717362644281,-150.0,0.00030295,2]
[328411299,1717362644291,-475.54,0.0003031,2]
[328411300,1717362644300,-161.59,0.0003031,2]
[328411301,1717362644310,-150.0,0.00030319,2]
[328411302,1717362644319,-150.0,0.00030344,2]
[328411303,1717362644328,-150.0,0.00030365,2]
[328411304,1717362644338,-600.0,0.00030365,2]
[328411305,1717362644347,-150.0,0.00030371,2]
[328411306,1717362644356,-300.0,0.00030373,2]
[328411307,1717362644365,-1000.0,0.0003038,2]
[328411308,1717362644374,-4542.69516686,0.0003038,2]
[328411309,1717362644384,-167.91712553,0.0003038,2]
[328411310,1717362644393,-162.04610812,0.0003038,2]
[328411311,1717362644403,-3505.82768047,0.0003038,4]
[328411312,1717362644411,-397.90257012,0.0003038,2]
[328411313,1717362644420,-6999.64127658,0.00030391,2]
[328411314,1717362644429,-300.0,0.00030402,2]
[328411315,1717362644438,-500.0,0.0003041,6]
[328411316,1717362644447,-300.0,0.00030424,2]
[328411317,1717362644456,-150.0,0.0003043,2]
[328411318,1717362644465,-304.7258487,0.00030432,2]
[328411319,1717362644475,-150.0,0.00030444,2]
[328411320,1717362644484,-150.0,0.0003045,2]
[328411321,1717362644494,-300.0,0.00030457,2]
[328411322,1717362644503,-150.0,0.0003047,2]
[328411323,1717362644512,-151.15,0.0003047,2]
[328411324,1717362644521,-151.15,0.0003047,2]
[328411325,1717362644531,-382.52220786,0.0003047,2]
[328411326,1717362644541,-150.0,0.00030477,2]
[328411327,1717362644550,-103257.86672179,0.0003048,2]
[328411328,1717362644559,-8340.10700706,0.0003048,2]
[328411329,1717362644575,-174666.10067972,0.0003048,2]
[328411330,1717362644585,-267843.81749674,0.0003048,2]
[328411331,1717362647811,-345.15,0.00029981,2]
[328411332,1717362647820,-150.0,0.00029981,2]
[328411333,1717362647830,-163.91,0.00029981,2]
[328411334,1717362647840,-320.0,0.0003,5]
[328411335,1717362647850,-150.0,0.00030039,2]
[328411336,1717362647859,-150.0,0.00030208,2]
[328411337,1717362647869,-1217.83212476,0.0003048,2]
[328411338,1717362647880,-349.999995,0.0003048,2]
[328411339,1717362647891,-1682.55984517,0.0003048,2]
[328411340,1717362647904,-1316.09,0.0003048,2]
[328411341,1717362647915,-7256.76705638,0.0003048,2]
[328411342,1717362647926,-817.1824808,0.0003048,2]
[328411343,1717362647937,-276.70273799,0.0003048,2]
[328411344,1717362647949,-542.251,0.0003048,2]
[328411345,1717362647960,-10517.83837507,0.0003048,2]
[328411346,1717362647971,-962.65997474,0.0003048,2]
[328411347,1717362647984,-371.94298639,0.0003048,2]
[328411348,1717362647995,-2767.36401261,0.0003048,2]
[328411349,1717362648006,-1338.106914,0.0003048,2]
[328411350,1717362648017,-31995.82299337,0.0003048,2]
[328411351,1717362648028,-40766.0167919,0.0003048,2]
[328411352,1717362648040,-694766.99330614,0.0003048,2]
[328411353,1717362648051,-13281.40867131,0.0003048,2]
[328411354,1717362648063,-12852.92214099,0.0003048,2]
[328411355,1717362648074,-22002.67347256,0.0003048,2]
[328411356,1717362648083,-136784.09398561,0.0003048,2]
[328411357,1717362648093,-34565.96734481,0.0003048,2]
[328411358,1717362648104,-735.73500075,0.0003048,2]
[328411359,1717362648115,-316.01403212,0.0003048,2]
[328411360,1717362648169,-10168.97322328,0.0003048,2]
[328411361,1717362648180,-400.57,0.0003048,2]
[328411363,1717362828796,-4438.46997973,0.00011952,2]
[328411364,1717362828819,-155.0,0.00011953,2]
[328411365,1717362828841,-1275.60115408,0.00011953,2]
[328411366,1717362878323,299.43095012,0.00011953,2]
[328411367,1717362896327,295.70993185,0.00011953,2]
[328411368,1717362972857,307.13139386,0.00031,30]
[328411371,1717363083464,-320.19953639,0.00024998,10]
[328411372,1717363098290,-1010.14454915,0.0002,2]
[328411373,1717363099121,320.19953639,0.00024998,10]
[328411374,1717363099946,155.0,0.00017259,2]
[328411375,1717363109533,150.0,0.000166,2]
[328411376,1717363109555,150.0,0.000166,2]
[328411377,1717363109577,191.39,0.000166,2]
[328411378,1717363109599,150.0,0.000166,2]
[328411379,1717363109620,150.0,0.000166,2]
[328411380,1717363109643,150.0,0.000166,2]
[328411381,1717363109667,150.0,0.000166,2]
[328411382,1717363109688,150.0,0.000166,2]
[328411383,1717363109709,150.0,0.000166,2]
[328411384,1717363109730,150.0,0.000166,2]
[328411385,1717363109750,150.0,0.000166,2]
[328411386,1717363109771,150.0,0.000166,2]
[328411387,1717363109792,40.61,0.000166,2]
[328411388,1717363110160,150.0,0.000166,2]
[328411389,1717363110183,150.0,0.000166,2]
[328411390,1717363110203,1443.0,0.000166,2]
[328411391,1717363115077,166.82395846,0.00024998,10]
[328411392,1717363127754,155.0,0.0002,4]
[328411393,1717363130311,1500.0,0.00017259,2]
[328411394,1717363131083,166.82395846,0.00024997,10]
[328411395,1717363149314,166.82395846,0.00024996,10]
[328411396,1717363167140,166.82395846,0.00024996,10]
[328411397,1717363187404,166.82395846,0.00024995,10]
[328411398,1717363205100,166.82395846,0.00024995,10]
[328411399,1717363225125,166.82395846,0.00024994,10]
[328411400,1717363243611,166.82395846,0.00024994,10]
[328411401,1717363267102,266.4060143,0.00024994,10]
[328411402,1717363311002,19533.10118789,0.00017259,2]
[328411403,1717363367611,403.6747044,0.00017259,2]
[328411404,1717363374673,155.0,0.00017086,2]
[328411405,1717363375410,1045.85270731,0.00017259,2]
[328411406,1717363375438,1041.43553374,0.00017259,2]
[328411407,1717363383492,37549.10402596,0.00017259,2]
[328411408,1717363384052,168.90590536,0.00017259,2]
[328411409,1717363388844,155.0,0.00017086,2]
[328411410,1717363389447,1041.43553374,0.00017259,2]
[328411411,1717363391423,992.80269141,0.00017259,2]
[328411412,1717363397244,37549.10402596,0.00017259,2]
[328411414,1717363402060,168.90590536,0.00017259,2]
[328411415,1717363409448,1041.43553374,0.00017259,2]
[328411416,1717363412347,154.0,0.000166,2]
[328411417,1717363416100,155.0,0.00017086,2]
[328411418,1717363420054,177.79090949,0.00017259,2]
[328411419,1717363421263,37549.10402596,0.00017259,2]
[328411420,1717363429536,360.05548489,0.000166,2]
[328411421,1717363436682,159.65729885,0.00016434,2]
[328411422,1717363443274,37549.10402596,0.000166,2]
[328411423,1717363447579,155.0,0.0002,4]
[328411424,1717363461331,12167.17393505,0.000166,2]
[328411425,1717363521950,3790.425131,0.000308,30]
[328411426,1717363522286,3790.425131,0.000308,30]
[328411441,1717363832159,-578.0391,0.000166,2]
[328411443,1717363832171,-1000.37172,0.000166,2]
[328411490,1717363832820,-128.58918,0.000166,2]
[328411492,1717363832829,-602.0,0.000166,2]
[328411493,1717363832838,-511.13456471,0.00024383,2]
[328411496,1717363832850,-499.00998444,0.00024383,2]
[328411498,1717363832859,-150.76,0.00024384,2]
[328411500,1717363832868,-169.47,0.00024384,2]
[328411502,1717363832877,-313.1,0.00024474,2]
[328411504,1717363832886,-195.50616035,0.00024993,2]
[328411506,1717363832896,-283.22125849,0.00024996,4]
[328411508,1717363832905,-11624.35593076,0.00024997,2]
[328411518,1717363838303,-521.60000002,0.00024997,2]
[328411519,1717363838315,-2403.3862126,0.00024997,2]
[328411520,1717363838386,-5450.64785662,0.00024997,2]
[328411521,1717363838398,-499.99,0.00024997,2]
[328411522,1717363838407,-226.04727769,0.00024998,2]
[328411523,1717363838417,-447.80409919,0.00024999,2]
[328411524,1717363838426,-648.16515783,0.00025,2]
[328411619,1717363843386,-200.54023639,0.00024875,2]
[328411622,1717363843398,-289.57235643,0.00025,2]
[328411645,1717363843506,-312.26248574,0.00025,2]
[328411648,1717363843515,-325.53303523,0.00025,2]
[328411651,1717363843525,-250.0,0.000264,2]
[328411654,1717363843535,-2053.44124277,0.000266,2]
[328411657,1717363843544,-313.1,0.00026737,2]
[328411659,1717363843552,-151.0,0.00026809,5]
[328411661,1717363843562,-173.67,0.00026901,2]
[328411663,1717363843571,-250.0,0.00026906,2]
[328411665,1717363843579,-256.18,0.00026906,2]
[328411666,1717363843589,-1300.0,0.00027,2]
[328411667,1717363843598,-4023.35632316,0.00027,2]
[328411668,1717363843607,-200.324694,0.00027,2]
[328411669,1717363843616,-150.0,0.00027,2]
[328411670,1717363843625,-4489.09912853,0.00027286,2]
[328411671,1717363843636,-3331.07087147,0.00027286,2]
[328411672,1717363843645,-806.82910337,0.0002739,2]
[328411673,1717363843654,-150.0,0.00027397,2]
[328411674,1717363843664,-1000.0,0.00027781,2]
[328411675,1717363843673,-8916.99460983,0.00028,2]
[328411676,1717363843682,-151.0,0.00028105,7]
[328411677,1717363843691,-150.0,0.00028118,2]
[328411678,1717363843700,-150.0,0.00028839,2]
[328411679,1717363843721,-509.95591046,0.000289,2]
[328411680,1717363843731,-1000.0,0.000289,2]
[328411689,1717363843951,-2819.14234175,0.000289,2]
[328411690,1717363843970,-3109.9594,0.000289,2]
[328411691,1717363843980,-162.452901,0.000289,2]
[328411692,1717363843989,-179.64019901,0.000289,2]
[328411693,1717363843999,-313.9335661,0.00028954,7]
[328411694,1717363844008,-733.18794817,0.00028954,2]
[328411695,1717363844018,-341.38,0.0002899,3]
[328411696,1717363844028,-1350.0,0.00029,2]
[328411697,1717363844039,-2224.94014878,0.00029,2]
[328411698,1717363844206,-1938.90765752,0.00029,2]
[328411699,1717363844215,-1978.84213876,0.00029,2]
[328411700,1717363844227,-1267.82998508,0.00029,2]
[328411701,1717363844239,-74817.03795457,0.00029,2]
[328411702,1717363845464,1500.0,0.00031,30]
[328411710,1717363846719,-155.0,0.00024999,4]
[328411711,1717363846729,-293.81069835,0.00029,2]
[328411712,1717363846740,-7591.38422175,0.00029,2]
[328411713,1717363846752,-2588.34354534,0.00029,2]
[328411714,1717363846763,-1757.5235759,0.00029,2]
[328411715,1717363846774,-30734.56534103,0.00029,2]
[328411716,1717363846785,-25461.38286873,0.00029,2]
[328411717,1717363846794,-200.0,0.00029,2]
[328411718,1717363846803,-313.1,0.00029001,2]
[328411719,1717363846812,-150.0,0.00029068,2]
[328411720,1717363846821,-180.0,0.0002911,2]
[328411721,1717363846830,-150.0,0.00029116,2]
[328411722,1717363846839,-150.0,0.00029118,2]
[328411723,1717363846849,-150.0,0.00029159,2]
[328411724,1717363846858,-261.21,0.00029159,2]
[328411725,1717363846867,-163.91,0.00029159,2]
[328411726,1717363846875,-150.0,0.00029159,2]
[328411727,1717363846884,-465.11,0.00029159,2]
[328411728,1717363846893,-150.0,0.00029197,2]
[328411729,1717363846903,-150.0,0.00029215,2]
[328411730,1717363846912,-1500.0,0.00029297,2]
[328411731,1717363846920,-1500.0,0.0002932,2]
[328411732,1717363846930,-150.0,0.00029352,2]
[328411733,1717363846938,-2819.14234171,0.00029378,2]
[328411734,1717363846947,-151.0,0.00029402,7]
[328411735,1717363846957,-162.45290093,0.00029438,2]
[328411736,1717363846966,-150.0,0.00029463,2]
[328411737,1717363846975,-150.0,0.00029484,2]
[328411738,1717363846989,-947.606282,0.000295,2]
[328411739,1717363847001,-506.57,0.00029522,2]
[328411740,1717363847012,-150.0,0.0002956,2]
[328411741,1717363847021,-150.0,0.00029602,2]
[328411742,1717363847031,-150.0,0.00029625,2]
[328411743,1717363847041,-1308.81107975,0.00029644,2]
[328411744,1717363847051,-150.0,0.00029646,2]
[328411745,1717363847062,-150.0,0.00029666,2]
[328411746,1717363847074,-1500.0,0.00029766,2]
[328411747,1717363847084,-1421.409424,0.000298,2]
[328411748,1717363847096,-150.0,0.00029805,2]
[328411749,1717363847106,-150.0,0.00029815,2]
[328411750,1717363847116,-150.0,0.00029832,2]
[328411751,1717363847126,-2819.14234171,0.00029856,2]
[328411752,1717363847135,-150.0,0.00029863,2]
[328411753,1717363847145,-150.0,0.00029863,2]
[328411754,1717363847155,-150.0,0.00029863,2]
[328411755,1717363847164,-150.0,0.00029863,2]
[328411756,1717363847175,-150.0,0.00029863,2]
[328411757,1717363847186,-150.0,0.00029863,2]
[328411758,1717363847196,-150.0,0.00029863,2]
[328411759,1717363847206,-150.0,0.00029863,2]
[328411760,1717363847216,-150.0,0.00029863,2]
[328411761,1717363847226,-150.83,0.00029863,2]
[328411762,1717363847236,-150.0,0.00029863,2]
[328411763,1717363847246,-150.0,0.00029863,2]
[328411764,1717363847256,-150.0,0.00029873,2]
[328411765,1717363847268,-150.0,0.00029877,2]
[328411766,1717363847278,-500.0,0.0002989,3]
[328411767,1717363847287,-2009.24235392,0.000299,2]
[328411768,1717363847297,-150.0,0.00029932,2]
[328411769,1717363847306,-150.0,0.00029971,2]
[328411770,1717363847315,-162.45290093,0.00029975,2]
[328411771,1717363847324,-150.0,0.00029975,2]
[328411772,1717363847334,-1065.89322203,0.00029979,2]
[328411773,1717363847345,-268.78049174,0.00029979,2]
[328411774,1717363847360,-361.9806066,0.00029979,10]
[328411775,1717363847369,-2366.67503742,0.0002998,2]
[328411776,1717363847379,-785.08586126,0.0002998,2]
[328411777,1717363847388,-150.0,0.00029981,2]
[328411778,1717363847399,-150.0,0.00029981,2]
[328411779,1717363847408,-150.0,0.00029981,2]
[328411780,1717363847418,-352.8,0.00029981,2]
[328411781,1717363847428,-150.0,0.00029981,2]
[328411782,1717363847440,-150.0,0.00029981,2]
[328411783,1717363847450,-150.0,0.00029981,2]
[328411784,1717363847459,-843.06,0.00029981,2]
[328411785,1717363847468,-352.8,0.00029981,2]
[328411786,1717363847477,-150.0,0.00029981,2]
[328411787,1717363847487,-163.91,0.00029981,2]
[328411788,1717363847496,-352.8,0.00029981,2]
[328411789,1717363847505,-150.0,0.00029981,2]
[328411790,1717363847515,-163.91,0.00029981,2]
[328411791,1717363847525,-352.8,0.00029981,2]
[328411792,1717363847535,-150.0,0.00029981,2]
[328411793,1717363847544,-705.29,0.00029981,2]
[328411794,1717363847553,-163.91,0.00029981,2]
[328411795,1717363847562,-150.0,0.00029981,2]
[328411796,1717363847571,-352.8,0.00029981,2]
[328411797,1717363847580,-163.91,0.00029981,2]
[328411798,1717363847589,-150.0,0.00029981,2]
[328411799,1717363847598,-352.8,0.00029981,2]
[328411800,1717363847607,-163.91,0.00029981,2]
[328411801,1717363847618,-352.8,0.00029981,2]
[328411802,1717363847627,-163.91,0.00029981,2]
[328411803,1717363847636,-214.02,0.00029981,2]
[328411804,1717363847645,-5702.70709465,0.0003,2]
[328411805,1717363847654,-5000.0,0.0003,7]
[328411806,1717363847663,-1895.212565,0.0003,2]
[328411807,1717363847672,-200.0,0.0003,2]
[328411808,1717363847681,-1500.0,0.0003,5]
[328411809,1717363847690,-150.0,0.00030055,2]
[328411810,1717363847700,-150.0,0.00030066,2]
[328411811,1717363847708,-1500.0,0.00030071,2]
[328411812,1717363847717,-1178.15694375,0.00030088,2]
[328411813,1717363847727,-30000.0,0.000301,5]
[328411814,1717363847735,-1500.0,0.00030106,2]
[328411815,1717363847745,-150.0,0.00030116,2]
[328411816,1717363847754,-500.0,0.00030136,5]
[328411817,1717363847763,-294.23685675,0.00030147,2]
[328411818,1717363847773,-150.0,0.00030166,2]
[328411819,1717363847782,-2369.015707,0.000302,2]
[328411820,1717363847792,-150.0,0.00030207,2]
[328411821,1717363847801,-718.3503353,0.00030247,4]
[328411822,1717363847810,-5000.0,0.00030247,2]
[328411823,1717363847819,-1486.22934269,0.00030247,4]
[328411824,1717363847829,-3353.29502415,0.00030248,5]
[328411825,1717363847838,-150.0,0.00030281,2]
[328411826,1717363847847,-150.0,0.00030315,2]
[328411827,1717363847856,-2819.14234171,0.00030333,15]
[328411828,1717363847866,-150.0,0.00030338,2]
[328411829,1717363847875,-150.0,0.00030339,2]
[328411830,1717363847885,-150.0,0.00030368,2]
[328411831,1717363847895,-150.0,0.00030379,2]
[328411832,1717363847905,-150.0,0.00030383,2]
[328411833,1717363847914,-294.23685673,0.00030397,2]
[328411834,1717363847924,-1000.0,0.000304,2]
[328411835,1717363847933,-345.0,0.000304,3]
[328411836,1717363847942,-150.0,0.000304,6]
[328411837,1717363847951,-1989.9969115,0.00030477,2]
[328411838,1717363847960,-12061.6791856,0.00030477,2]
[328411839,1717363847970,-461.6196074,0.00030477,2]
[328411840,1717363847979,-1149.6792301,0.00030477,2]
[328411841,1717363847988,-205.30156829,0.00030478,4]
[328411842,1717363847998,-242.98912964,0.00030478,4]
[328411843,1717363848007,-168.21493625,0.00030478,4]
[328411844,1717363848017,-4435.34211373,0.00030478,4]
[328411845,1717363848026,-1274.59491522,0.00030478,4]
[328411846,1717363848036,-2429.12868444,0.00030479,4]
[328411847,1717363848045,-415.55492983,0.00030479,4]
[328411848,1717363848054,-524.41258543,0.00030479,4]
[328411849,1717363848063,-150.0,0.00030479,2]
[328411850,1717363848074,-32975.47522213,0.0003048,2]
[328411851,1717363848083,-2000.0,0.0003048,2]
[328411852,1717363848093,-200.0,0.0003048,2]
[328411853,1717363848104,-412.73599021,0.00030498,4]
[328411854,1717363848114,-7470.0,0.000305,5]
[328411855,1717363848123,-1000.0,0.000305,2]
[328411856,1717363848132,-150.0,0.000305,2]
[328411857,1717363848142,-10342.598973,0.000305,2]
[328411858,1717363848151,-3316.62199,0.000305,2]
[328411859,1717363848160,-30000.0,0.000305,4]
[328411860,1717363848170,-1500.0,0.000305,5]
[328411861,1717363848181,-150.0,0.00030509,2]
[328411862,1717363848191,-162.45290093,0.00030513,15]
[328411863,1717363848201,-150.0,0.00030558,2]
[328411864,1717363848360,-631.28742443,0.00030559,5]
[328411865,1717363848369,-191.26110393,0.0003059,2]
[328411866,1717363848379,-7535.53144407,0.00030596,4]
[328411867,1717363848389,-7927.75457232,0.00030596,4]
[328411868,1717363848399,-250000.0,0.000306,7]
[328411869,1717363848410,-487.0,0.000306,15]
[328411870,1717363848420,-2000.0,0.000306,3]
[328411871,1717363848429,-4164.13723627,0.000306,2]
[328411872,1717363848441,-167.91712553,0.000306,2]
[328411873,1717363848453,-340.0,0.000306,3]
[328411874,1717363848474,-162.04610811,0.000306,2]
[328411875,1717363848486,-150.0,0.00030616,2]
[328411876,1717363848496,-294.23685673,0.00030648,2]
[328411877,1717363848506,-150.70124754,0.00030649,7]
[328411878,1717363848515,-151.0,0.00030653,2]
[328411879,1717363848525,-150.0,0.00030685,2]
[328411880,1717363848536,-150.0,0.00030685,2]
[328411881,1717363848545,-150.0,0.00030685,2]
[328411882,1717363848556,-44757.02664791,0.0003069,2]
[328411883,1717363848566,-151.15,0.0003069,2]
[328411884,1717363848576,-155.0,0.00030696,2]
[328411885,1717363848588,-155.33073223,0.00030696,2]
[328411886,1717363848599,-224.73219241,0.00030698,4]
[328411887,1717363848610,-162.97578809,0.00030698,4]
[328411888,1717363848619,-19531.59683746,0.00030698,4]
[328411889,1717363848629,-155.08580722,0.00030698,4]
[328411890,1717363848639,-272.46761698,0.00030698,4]
[328411891,1717363848648,-411.78076722,0.00030698,2]
[328411892,1717363848660,-155.40824956,0.00030698,2]
[328411893,1717363848671,-155.37516686,0.00030698,2]
[328411894,1717363848683,-7600.0,0.00030698,4]
[328411895,1717363848694,-151.0,0.00030698,7]
[328411896,1717363848703,-163.10378917,0.00030699,10]
[328411897,1717363848713,-263.0,0.000307,5]
[328411898,1717363848722,-10692.63311802,0.000307,7]
[328411899,1717363848738,-4611.62321191,0.000307,7]
[328411900,1717363848750,-6634.45000001,0.000307,7]
[328411904,1717363898051,1250.0,0.000181,10]
[328411923,1717365032754,-458.8334922,0.00016711,2]
[328411924,1717365032763,-179.56,0.00016712,2]
[328411925,1717365032773,-21.4305078,0.00017099,2]
[328411928,1717365032789,-459.6794922,0.00017099,2]
[328411929,1717365032798,-179.42004739,0.00018,2]
[328411932,1717365032809,-42.85702069,0.00018,2]
[328411933,1717365032819,-180.49588351,0.000181,2]
[328411934,1717365032829,-170.8674958,0.000181,2]
[328411935,1717365032912,-51.40957215,0.000181,2]
[328411936,1717365032921,-222.27706795,0.000182,2]
[328411937,1717365032930,-500.0,0.00018202,2]
[328411938,1717365032939,-3926.35,0.00018202,2]
[328411939,1717365032948,-1498.66,0.00018202,6]
[328411940,1717365032957,-278.26,0.00018202,2]
[328411941,1717365032966,-602.4,0.00018241,2]
[328411942,1717365032975,-150.0,0.00018299,2]
[328411943,1717365032984,-222.27706795,0.000183,2]
[328411944,1717365032993,-1211.85,0.000183,2]
[328411945,1717365033002,-509.83,0.000183,2]
[328411946,1717365033011,-250.0,0.0001832,2]
[328411947,1717365033020,-500.0,0.00018323,2]
[328411948,1717365033029,-222.27706795,0.000184,2]
[328411949,1717365033039,-150.0,0.00018491,2]
[328411950,1717365033048,-222.27706795,0.000185,2]
[328411951,1717365033058,-2751.0,0.00018571,2]
[328411952,1717365033068,-222.27706795,0.000186,2]
[328411953,1717365033077,-222.27706795,0.000187,2]
[328411954,1717365033087,-222.27706795,0.000188,2]
[328411955,1717365033097,-222.27706795,0.000189,2]
[328411956,1717365033106,-222.27706795,0.00019,2]
[328411957,1717365033115,-250.0,0.00019017,2]
[328411958,1717365033126,-499.99,0.00019017,2]
[328411959,1717365033135,-222.27706795,0.000191,2]
[328411960,1717365033145,-3926.35,0.00019112,2]
[328411961,1717365033155,-23890.0,0.00019137,2]
[328411962,1717365033164,-5618.47,0.00019182,2]
[328411963,1717365033173,-222.27706795,0.000192,2]
[328411964,1717365033182,-327.28,0.00019218,2]
[328411965,1717365033191,-222.27706795,0.000193,2]
[328411966,1717365033201,-5980.13,0.00019335,2]
[328411967,1717365033210,-488.52,0.00019335,2]
[328411968,1717365033219,-200.0,0.00019349,2]
[328411969,1717365033228,-1000.94,0.00019363,2]
[328411970,1717365033237,-481.11,0.00019363,2]
[328411971,1717365033247,-222.27706795,0.000194,2]
[328411972,1717365033256,-222.27706795,0.000195,2]
[328411973,1717365033265,-151.25,0.00019583,2]
[328411974,1717365033275,-222.27706795,0.000196,2]
[328411975,1717365033285,-169.69,0.00019673,2]
[328411976,1717365033294,-222.27706795,0.000197,2]
[328411977,1717365033303,-222.27706795,0.000198,2]
[328411978,1717365033314,-166.1,0.00019813,2]
[328411979,1717365033325,-222.27706795,0.000199,2]
[328411980,1717365033334,-11461.88674566,0.000199,2]
[328411981,1717365033343,-323.88535798,0.0001999,2]
[328411982,1717365033354,-268.8570025,0.00019993,2]
[328411983,1717365033363,-184.0,0.00019998,2]
[328411984,1717365033372,-500.0,0.00019999,2]
[328411985,1717365033382,-500.0,0.00019999,2]
[328411986,1717365033391,-306.46341845,0.00019999,2]
[328411987,1717365033401,-500.0,0.00019999,2]
[328411988,1717365033411,-500.0,0.00019999,2]
[328411989,1717365033421,-500.0,0.00019999,2]
[328411990,1717365033431,-500.0,0.00019999,2]
[328411991,1717365033440,-633.12783713,0.00019999,2]
[328411992,1717365033449,-500.0,0.00019999,2]
[328411993,1717365033459,-500.0,0.00019999,2]
[328411994,1717365033468,-500.0,0.00019999,2]
[328411995,1717365033479,-500.0,0.00019999,2]
[328411996,1717365033488,-500.0,0.00019999,2]
[328411997,1717365033498,-500.0,0.00019999,2]
[328411998,1717365033507,-513.29249511,0.00019999,2]
[328411999,1717365033517,-500.0,0.00019999,2]
[328412000,1717365033526,-500.0,0.00019999,2]
[328412001,1717365033537,-500.0,0.00019999,2]
[328412002,1717365033547,-500.0,0.00019999,2]
[328412003,1717365033558,-500.0,0.00019999,2]
[328412004,1717365033567,-500.0,0.00019999,2]
[328412005,1717365033577,-483.56020658,0.00019999,2]
[328412006,1717365033587,-500.0,0.00019999,2]
[328412007,1717365033597,-500.0,0.00019999,2]
[328412008,1717365033606,-500.0,0.00019999,2]
[328412009,1717365033615,-500.0,0.00019999,2]
[328412010,1717365033625,-500.0,0.00019999,2]
[328412011,1717365033634,-500.0,0.00019999,2]
[328412012,1717365033644,-500.0,0.00019999,2]
[328412013,1717365033653,-500.0,0.00019999,2]
[328412014,1717365033663,-500.0,0.00019999,2]
[328412015,1717365033673,-500.0,0.00019999,2]
[328412016,1717365033682,-500.0,0.00019999,2]
[328412017,1717365033692,-500.0,0.00019999,2]
[328412018,1717365033701,-485.9292836,0.00019999,2]
[328412019,1717365033711,-500.0,0.00019999,2]
[328412020,1717365033720,-500.0,0.00019999,2]
[328412021,1717365033730,-500.0,0.00019999,2]
[328412022,1717365033740,-500.0,0.00019999,2]
[328412023,1717365033750,-500.0,0.00019999,2]
[328412024,1717365033759,-500.0,0.00019999,2]
[328412025,1717365033769,-500.0,0.00019999,2]
[328412026,1717365033780,-500.0,0.00019999,2]
[328412027,1717365033791,-500.0,0.00019999,2]
[328412028,1717365033800,-500.0,0.00019999,2]
[328412029,1717365033810,-500.0,0.00019999,2]
[328412030,1717365033821,-500.0,0.00019999,2]